[Event "XLII San Sebastian Open 2019"]
[Site "San Sebastian"]
[Date "2019.04.18"]
[Round "7.2"]
[White "Alshameary Puente, Ismael"]
[Black "Russell, Christopher"]
[Result "1-0"]
[ECO "E47"]
[WhiteElo "2425"]
[BlackElo "2178"]
[Annotator "NA"]
[PlyCount "27"]
[EventDate "2019.04.13"]
[EventType "swiss"]
[EventCountry "ESP"]
[SourceTitle "playchess.com"]
[Source "ChessBase"]
[SourceQuality "1"]
[TimeControl "5400+30"]

1. d4 {[%emt 0:00:27]} e6 {[%emt 0:00:00]} 2. c4 {[%emt 0:00:05]} Nf6 {[%emt 0:00:00]} 3. Nc3 {[%emt 0:00:08]} Bb4 {[%emt 0:00:00]} 4. e3 {[%emt 0:00:26]} O-O {[%emt 0:00:00]} 5. Bd3 {[%emt 0:00:43]} c5 {[%emt 0:00:00]} 6. Nge2 {[%emt 0:00:18]} d5 {[%emt 0:01:18]} 7. cxd5 {[%emt 0:01:06]} cxd4 {[%emt 0:00:06]} 8. exd4 {[%emt 0:00:09]} Nxd5 {[%emt 0:00:04]} 9. O-O {[%emt 0:00:07]} Nc6 {[%emt 0:00:38]} 10. Nxd5 {[%emt 0:06:01]} exd5 {[%emt 0:00:24]} 11. Nf4 {[%emt 0:00:31]} Bd6 {[%emt 0:13:44]} 12. Qh5 {[%emt 0:21:57]} g6 {[%emt 0:08:06]} 13. Qh6 {[%emt 0:00:15]} Ne7 {[%emt 0:08:28]} 14. Nh5 {[%emt 0:01:19]} 1-0

[Event "XLII San Sebastian Open 2019"]
[Site "San Sebastian"]
[Date "2019.04.18"]
[Round "7.3"]
[White "Alonso Arburu, Juan Ignacio"]
[Black "Safranska, Anda"]
[Result "1-0"]
[ECO "B06"]
[WhiteElo "2341"]
[BlackElo "2167"]
[Annotator "NA"]
[PlyCount "149"]
[EventDate "2019.04.13"]
[EventType "swiss"]
[EventCountry "ESP"]
[SourceTitle "playchess.com"]
[Source "ChessBase"]
[SourceQuality "1"]
[TimeControl "5400+30"]

1. d4 {[%emt 0:00:00]} d6 {[%emt 0:00:42]} 2. e4 {[%emt 0:00:20]} g6 {[%emt 0:00:06]} 3. Nc3 {[%emt 0:00:24]} Bg7 {[%emt 0:00:06]} 4. Bg5 {[%emt 0:00:37]} c6 {[%emt 0:00:15]} 5. Qd2 {[%emt 0:01:02]} Qb6 {[%emt 0:00:50]} (5... b5 6. f4 Nd7 7. Nf3 b4 8. Na4 a5 9. a3 Rb8 10. axb4 axb4 11. Bc4 Ngf6 12. e5 Ne4 13. Qe3 d5 14. Bd3 Nxg5 15. Nxg5 e6 {0-1 (38) Savchenko,B (2562)-Maghsoodloo,P (2688) St Petersburg 2018}) 6. O-O-O {[%emt 0:00:36] B06: Modern Defence} a5 {[%emt 0:00:29]} 7. h3 {[%emt 0:01:36]} a4 {[%emt 0:00:52]} 8. a3 $146 {[%emt 0:00:48]} ({Predecessor:} 8. f4 Qa5 9. Nf3 b5 10. Bd3 b4 11. Ne2 Qb6 12. Kb1 Na6 13. e5 {1-0 (38) Walek,M (2314)-Stonawski,I Tatranske Zruby 2000}) 8... Qa5 {[%emt 0:00:29]} 9. Nf3 {[%emt 0:03:34]} Nd7 {[%emt 0:02:50]} 10. Bc4 {[%emt 0:03:59]} b5 {[%emt 0:03:32]} 11. Ba2 {[%emt 0:04:53]} b4 {[%emt 0:00:26]} 12. Nb1 {[%emt 0:00:30]} bxa3 {[%emt 0:02:56]} 13. Nxa3 {[%emt 0:00:21]} Qxd2+ {[%emt 0:01:47]} 14. Rxd2 {[%emt 0:00:11]} Nb6 {[%emt 0:14:47]} 15. Re1 {[%emt 0:05:25]} Bd7 {[%emt 0:11:00]} 16. c3 {[%emt 0:04:17]} Kf8 {[%emt 0:07:45]} 17. Be3 {[%emt 0:04:30]} d5 {[%emt 0:01:27]} 18. Ne5 {[%emt 0:02:22]} Be8 {[%emt 0:04:44]} 19. f3 {[%emt 0:02:37]} e6 {[%emt 0:01:40]} 20. Nd3 {[%emt 0:01:09]} Nf6 {[%emt 0:05:26]} 21. Bf4 {[%emt 0:01:02]} Nc8 {[%emt 0:01:10]} 22. g4 {[%emt 0:01:51]} h5 {[%emt 0:07:24]} 23. g5 {[%emt 0:07:40]} Ng8 {[%emt 0:01:38]} 24. Rde2 {[%emt 0:01:51]} Nge7 $16 {[%emt 0:00:23]} 25. Nc5 {[%emt 0:00:58]} Kg8 {[%emt 0:01:06]} 26. Bc7 {[%emt 0:04:29]} Ra7 {[%emt 0:02:00]} 27. Bd8 {[%emt 0:01:09]} Bd7 {[%emt 0:00:25]} 28. Bb1 {[%emt 0:01:58]} Kh7 {[%emt 0:00:09]} 29. Bxe7 {[%emt 0:00:15]} Nxe7 {[%emt 0:00:06]} 30. Bc2 {[%emt 0:00:22]} Rha8 {[%emt 0:01:10]} 31. Bxa4 {[%emt 0:00:32]} Rxa4 {[%emt 0:00:40]} 32. Nxd7 {[%emt 0:00:11]} R4a7 {[%emt 0:00:21]} 33. Nc5 {[%emt 0:02:59]} Nc8 {[%emt 0:00:08]} 34. Nd3 {[%emt 0:01:56]} Nb6 {[%emt 0:02:12]} 35. Nc2 {[%emt 0:03:10]} Bf8 {[%emt 0:01:28]} 36. Ncb4 {[%emt 0:00:56]} Rc8 {[%emt 0:01:00]} 37. Kc2 {[%emt 0:01:29]} Kg7 {[%emt 0:00:28]} 38. Rf1 {[%emt 0:03:14]} Be7 {[%emt 0:04:00]} 39. h4 {[%emt 0:00:56]} Bd6 {[%emt 0:01:22]} 40. b3 {[%emt 0:02:34]} Ra5 {[%emt 0:06:37]} 41. Kb2 {[%emt 0:02:32]} Nd7 {[%emt 0:02:27]} 42. e5 {[%emt 0:05:03]} Be7 {[%emt 0:01:20]} 43. Ra1 {[%emt 0:00:27]} Rxa1 {[%emt 0:00:06]} 44. Kxa1 {[%emt 0:00:01]} c5 {[%emt 0:00:06]} 45. dxc5 {[%emt 0:00:59]} Nxc5 {[%emt 0:00:10]} 46. Kb2 {[%emt 0:00:37]} Kf8 {[%emt 0:01:36]} 47. Re1 {[%emt 0:01:05]} Ra8 {[%emt 0:00:04]} 48. Nc1 {[%emt 0:02:39]} Nd7 {[%emt 0:01:35]} 49. Nc2 {[%emt 0:01:57]} Bc5 {[%emt 0:00:23]} 50. Nd3 {[%emt 0:00:31]} Bb6 {[%emt 0:00:11]} 51. Nd4 {[%emt 0:01:04]} Ke7 {[%emt 0:01:54]} 52. Ra1 {[%emt 0:00:50]} Rc8 {[%emt 0:04:34]} 53. Ra6 {[%emt 0:00:42]} Kd8 {[%emt 0:00:05]} 54. Ra4 {[%emt 0:02:11]} Ke7 {[%emt 0:02:36]} 55. f4 {[%emt 0:01:01]} Nc5 {[%emt 0:00:57]} 56. Nxc5 {[%emt 0:00:56]} Bxc5 {[%emt 0:00:04]} 57. Ra5 {[%emt 0:01:39]} Kd7 {[%emt 0:00:17]} 58. Rb5 {[%emt 0:00:13]} Rc7 {[%emt 0:00:29]} 59. Rb8 {[%emt 0:00:36]} Ba7 {[%emt 0:01:10]} 60. Ra8 {[%emt 0:01:10]} Bxd4 {[%emt 0:02:24]} 61. cxd4 {[%emt 0:00:02]} Kc6 {[%emt 0:00:11]} 62. Ka3 {[%emt 0:01:50]} Kb7 {[%emt 0:00:10]} 63. Rf8 {[%emt 0:00:15]} Kc6 {[%emt 0:00:04]} 64. Kb4 {[%emt 0:02:19]} Kb6 {[%emt 0:00:51]} 65. Rd8 {[%emt 0:00:37]} Rb7 {[%emt 0:00:33]} 66. Rc8 {[%emt 0:03:17]} Ra7 {[%emt 0:00:15]} 67. Re8 {[%emt 0:03:40]} Kc6 {[%emt 0:00:06]} 68. Rd8 {[%emt 0:01:40]} Kc7 {[%emt 0:00:07]} 69. Rd6 {[%emt 0:00:29]} Rb7+ {[%emt 0:01:47]} 70. Kc3 {[%emt 0:00:04]} Ra7 {[%emt 0:00:02]} 71. f5 {[%emt 0:00:35]} exf5 {[%emt 0:00:08]} 72. Rxd5 {[%emt 0:01:17]} Ra1 {[%emt 0:00:03]} 73. Rd6 {[%emt 0:00:15]} Rh1 {[%emt 0:00:14]} 74. Rf6 {[%emt 0:00:17]} Rxh4 {[%emt 0:00:09]} 75. Rxf7+ 1-0

[Event "XLII San Sebastian Open 2019"]
[Site "San Sebastian"]
[Date "2019.04.18"]
[Round "7.4"]
[White "Pulvett Marin, Daniel Eduardo"]
[Black "Suarez Garcia, Carlos"]
[Result "1-0"]
[ECO "A41"]
[WhiteElo "2468"]
[BlackElo "2424"]
[Annotator "ChessBase"]
[PlyCount "109"]
[EventDate "2019.04.13"]
[EventType "swiss"]
[EventCountry "ESP"]
[SourceTitle "playchess.com"]
[Source "ChessBase"]
[SourceQuality "1"]
[TimeControl "5400+30"]

1. d4 d6 2. Nf3 g6 3. g3 Bg7 4. Bg2 c5 5. O-O cxd4 6. Nxd4 Qb6 7. Nb3 Nf6 8. Nc3 Nc6 9. h3 O-O 10. e4 Be6 11. Re1 Rfe8 12. Nd5 Qd8 13. c3 Rc8 14. f4 Nd7 15. Be3 Na5 16. Bf2 Nc4 17. Rb1 Ndb6 18. g4 Na4 19. Re2 Bd7 20. Bh4 f6 21. Qe1 e6 22. Ne3 Nxe3 23. Rxe3 g5 24. Bg3 gxf4 25. Bxf4 Qb6 26. Kh1 e5 27. Bg3 Be6 28. Bf2 Qc7 29. Nc1 b5 30. a3 Nb6 31. Ne2 Bh6 32. Rf3 Nc4 33. Bh4 Bg5 34. Rxf6 Bxf6 35. Bxf6 Qf7 36. Qh4 Rf8 37. g5 d5 38. Ng3 Nd2 39. Rd1 Nxe4 40. Nxe4 dxe4 41. Bxe4 h5 42. Qg3 Rfe8 43. Qf3 Rf8 44. Rd6 Rce8 45. Kh2 h4 46. Qd3 Bc4 47. Qd1 Re6 48. Rd7 Be2 49. Rxf7 Bxd1 50. Rg7+ Kh8 51. Rh7+ Kg8 52. Rg7+ Kh8 53. Rg6+ Kh7 54. Rh6+ Kg8 55. Bh7+ 1-0

[Event "XLII San Sebastian Open 2019"]
[Site "San Sebastian"]
[Date "2019.04.18"]
[Round "7.5"]
[White "Cifuentes Parada, Roberto"]
[Black "Alcazar Jimenez, Victor"]
[Result "1/2-1/2"]
[ECO "A46"]
[WhiteElo "2445"]
[BlackElo "2363"]
[Annotator "NA"]
[PlyCount "186"]
[EventDate "2019.04.13"]
[EventType "swiss"]
[EventCountry "ESP"]
[SourceTitle "playchess.com"]
[Source "ChessBase"]
[SourceQuality "1"]
[TimeControl "5400+30"]

1. d4 {[%emt 0:01:00]} e6 {[%emt 0:02:00]} 2. Nf3 {[%emt 0:00:18]} Nf6 {[%emt 0:00:37]} 3. Bg5 {[%emt 0:01:08]} h6 {[%emt 0:02:55]} 4. Bh4 {[%emt 0:01:52]} Be7 {[%emt 0:00:53]} 5. Nbd2 {[%emt 0:00:16]} d5 {[%emt 0:02:55]} 6. e3 {[%emt 0:00:08]} b6 {[%emt 0:03:12]} 7. c3 {[%emt 0:00:52]} O-O {[%emt 0:01:27]} 8. Bd3 {[%emt 0:01:42]} c5 {[%emt 0:05:33]} 9. O-O {[%emt 0:01:54]} Nbd7 {[%emt 0:10:05]} 10. Ne5 {[%emt 0:01:27]} Nxe5 {[%emt 0:00:36]} 11. dxe5 {[%emt 0:00:04]} Nd7 {[%emt 0:00:08]} 12. Bxe7 {[%emt 0:01:12]} Qxe7 {[%emt 0:00:02]} 13. f4 {[%emt 0:00:09]} Bb7 {[%emt 0:02:00]} 14. Qh5 {[%emt 0:03:04] D03: 1 d4 d5 2 Nf3 Nf6 3 Bg5, including Torre Attack with early ...d5} Qe8 {[%emt 0:11:18]} 15. Nf3 {[%emt 0:08:12]} a5 {[%emt 0:10:55] [#]} 16. Rae1 $146 {[%emt 0:09:05]} ({Predecessor:} 16. Rf2 Ba6 17. Bc2 f6 18. Qxe8 Raxe8 19. exf6 Rxf6 20. g3 e5 21. Rd2 {1-0 (80) Harikrishna,P (2664)-Spoelman,W (2424) Wijk aan Zee 2008}) 16... f5 {[%emt 0:01:54]} 17. Qxe8 {[%emt 0:00:40]} Rfxe8 {[%emt 0:00:25]} 18. Bb5 {[%emt 0:00:27]} Re7 {[%emt 0:00:52]} 19. Rd1 {[%emt 0:00:31]} Nb8 {[%emt 0:06:44]} 20. Kf2 {[%emt 0:01:49]} Na6 {[%emt 0:03:02]} 21. Rg1 {[%emt 0:00:26]} Nc7 {[%emt 0:08:08]} 22. Bd3 {[%emt 0:00:21]} Ba6 {[%emt 0:00:27]} 23. Bc2 {[%emt 0:01:15]} b5 {[%emt 0:00:01]} 24. g4 {[%emt 0:00:17]} (24. a3 $16) 24... fxg4 {[%emt 0:00:02]} 25. Rxg4 {[%emt 0:00:07]} b4 {[%emt 0:00:02]} 26. cxb4 {[%emt 0:03:04]} axb4 {[%emt 0:00:09]} 27. Bb1 {[%emt 0:00:27]} Nb5 {[%emt 0:05:42]} 28. Rc1 {[%emt 0:05:58]} Rc8 {[%emt 0:00:31]} 29. e4 {[%emt 0:00:59]} Bb7 {[%emt 0:01:24]} 30. f5 {[%emt 0:00:38]} dxe4 $14 {[%emt 0:04:15]} 31. Bxe4 {[%emt 0:06:06]} exf5 {[%emt 0:02:30]} 32. Bxb7 {[%emt 0:00:17]} Rxb7 {[%emt 0:04:26]} 33. Rxb4 {[%emt 0:00:51]} cxb4 {[%emt 0:00:01]} 34. Rxc8+ {[%emt 0:00:10]} Kf7 {[%emt 0:00:01]} 35. Rc6 {[%emt 0:01:57]} Na7 {[%emt 0:04:07]} 36. Rc5 {[%emt 0:02:16]} Nb5 {[%emt 0:01:05]} 37. Rc4 {[%emt 0:02:07]} Nc7 {[%emt 0:00:47]} 38. Nd4 {[%emt 0:00:09]} g6 {[%emt 0:00:58]} 39. Rc6 {[%emt 0:05:58]} Ra7 {[%emt 0:03:17]} 40. Kf3 {[%emt 0:02:26]} Nd5 {[%emt 0:00:42]} 41. Rd6 {[%emt 0:00:59]} Ne7 {[%emt 0:01:38]} 42. Rb6 {[%emt 0:00:14]} Rxa2 {[%emt 0:00:19]} 43. Rxb4 {[%emt 0:00:05]} Ra5 {[%emt 0:00:09]} 44. e6+ {[%emt 0:01:48]} Kf6 {[%emt 0:00:01]} 45. Rb7 {[%emt 0:00:19]} Ra4 {[%emt 0:02:05]} 46. Rd7 {[%emt 0:01:42]} Ke5 {[%emt 0:01:07]} 47. Ke3 {[%emt 0:01:32]} Nd5+ {[%emt 0:00:30]} 48. Kf3 {[%emt 0:02:38]} Rxd4 {[%emt 0:00:17]} 49. e7 {[%emt 0:00:04]} Nf6 {[%emt 0:00:48]} 50. Rd8 {[%emt 0:00:03]} Rf4+ {[%emt 0:01:08]} 51. Kg3 {[%emt 0:00:34]} Rg4+ {[%emt 0:00:00]} 52. Kf3 {[%emt 0:00:09]} Rf4+ {[%emt 0:00:01]} 53. Kg3 {[%emt 0:00:04]} Rg4+ {[%emt 0:00:01]} 54. Kf3 {[%emt 0:03:59]} Ke6 {[%emt 0:00:01]} 55. e8=Q+ {[%emt 0:00:14]} Nxe8 {[%emt 0:00:06]} 56. Rxe8+ {[%emt 0:00:06]} Kf6 {[%emt 0:00:26]} 57. Rb8 {[%emt 0:00:23]} Kg5 {[%emt 0:00:17]} 58. h3 {[%emt 0:00:44]} Rd4 {[%emt 0:00:08]} 59. Rb6 {[%emt 0:00:22]} Rd3+ {[%emt 0:00:06]} 60. Kg2 {[%emt 0:00:04]} Kh5 {[%emt 0:01:13]} 61. Rb5 {[%emt 0:00:29]} Kh4 {[%emt 0:01:15]} 62. Rb4+ {[%emt 0:00:33]} Kg5 {[%emt 0:00:05]} 63. Rb5 {[%emt 0:00:49]} h5 {[%emt 0:00:20]} 64. Rb6 {[%emt 0:00:37]} Rd2+ {[%emt 0:00:14]} 65. Kg1 {[%emt 0:00:28]} Rc2 {[%emt 0:02:52]} 66. b3 {[%emt 0:01:04]} Rb2 {[%emt 0:00:22]} 67. h4+ {[%emt 0:00:41]} Kh6 {[%emt 0:00:00]} 68. Kf1 {[%emt 0:00:34]} Rd2 {[%emt 0:00:29]} 69. Rb4 {[%emt 0:00:09]} Kg7 {[%emt 0:00:01]} 70. Rc4 {[%emt 0:00:16]} Kf6 {[%emt 0:00:15]} 71. Rc6+ {[%emt 0:00:26]} Kf7 {[%emt 0:00:00]} 72. Rc4 {[%emt 0:00:24]} Ke6 {[%emt 0:00:07]} 73. b4 {[%emt 0:00:42]} Kd5 {[%emt 0:02:28]} 74. Rc5+ {[%emt 0:00:22]} Kd6 {[%emt 0:00:24]} 75. Rc4 {[%emt 0:01:31]} Rb2 {[%emt 0:00:34]} 76. Ke1 {[%emt 0:00:44]} Rg2 {[%emt 0:00:40]} 77. b5 {[%emt 0:00:26]} Kd5 {[%emt 0:01:04]} 78. Rc6 {[%emt 0:00:09]} Rg4 {[%emt 0:00:47]} 79. Kf2 {[%emt 0:00:11]} Rf4+ {[%emt 0:00:20]} 80. Ke3 {[%emt 0:00:48]} Re4+ {[%emt 0:00:10]} 81. Kf3 {[%emt 0:01:31]} Re6 {[%emt 0:00:02]} 82. Rc1 {[%emt 0:00:24]} Rb6 {[%emt 0:00:02]} 83. Rb1 {[%emt 0:00:44]} Kc5 {[%emt 0:00:01]} 84. Kf4 {[%emt 0:00:22]} Rxb5 {[%emt 0:00:06]} 85. Rc1+ {[%emt 0:00:16]} Kd5 {[%emt 0:01:35]} 86. Rd1+ {[%emt 0:01:00]} Ke6 {[%emt 0:00:58]} 87. Kg5 {[%emt 0:00:29]} Rb4 {[%emt 0:00:58]} 88. Kxg6 {[%emt 0:00:04]} Rxh4 {[%emt 0:00:05]} 89. Kg5 {[%emt 0:00:02]} Rg4+ {[%emt 0:00:17]} 90. Kxh5 {[%emt 0:00:04]} Rg8 {[%emt 0:00:25]} 91. Kh4 {[%emt 0:01:07]} f4 {[%emt 0:00:30]} 92. Ra1 {[%emt 0:00:55]} Kf5 {[%emt 0:01:10]} 93. Ra5+ {[%emt 0:00:19]} Ke4 {[%emt 0:00:02]} 1/2-1/2

[Event "XLII San Sebastian Open 2019"]
[Site "San Sebastian"]
[Date "2019.04.18"]
[Round "7.6"]
[White "Harutjunyan, Gevorg"]
[Black "Prieto Aranguren, Alain"]
[Result "1-0"]
[ECO "A05"]
[WhiteElo "2440"]
[BlackElo "2257"]
[Annotator "RC"]
[PlyCount "59"]
[EventDate "2019.04.13"]
[EventType "swiss"]
[EventCountry "ESP"]
[SourceTitle "playchess.com"]
[Source "ChessBase"]
[SourceQuality "1"]
[TimeControl "5400+30"]

1. Nf3 {[%emt 0:00:00]} Nf6 {[%emt 0:06:59]} 2. g3 {[%emt 0:00:00]} g6 {[%emt 0:00:07]} 3. b3 {[%emt 0:00:00]} Bg7 {[%emt 0:00:09]} 4. Bb2 {[%emt 0:00:00]} O-O {[%emt 0:00:14]} 5. Bg2 {[%emt 0:00:00]} d6 {[%emt 0:00:37]} 6. d4 {[%emt 0:00:00]} c5 {[%emt 0:00:39]} 7. c4 {[%emt 0:00:28]} cxd4 {[%emt 0:01:29]} 8. Nxd4 {[%emt 0:00:19]} d5 {[%emt 0:00:47]} 9. cxd5 {[%emt 0:03:00]} Nxd5 {[%emt 0:00:03]} 10. O-O {[%emt 0:00:08]} Nb4 {[%emt 0:00:04]} 11. Na3 {[%emt 0:01:52]} Qd7 {[%emt 0:00:07]} 12. Nc4 {[%emt 0:03:51]} Rd8 {[%emt 0:00:46]} 13. Qd2 {[%emt 0:05:39]} N8c6 {[%emt 0:08:04]} 14. Nxc6 {[%emt 0:11:34]} Nxc6 {[%emt 0:00:30]} 15. Qc1 {[%emt 0:01:27]} Bxb2 {[%emt 0:05:17]} 16. Qxb2 {[%emt 0:02:45]} Qd4 {[%emt 0:01:41]} 17. Qa3 {[%emt 0:02:23]} Be6 {[%emt 0:02:05]} 18. Rac1 {[%emt 0:01:21]} Rac8 {[%emt 0:06:02]} 19. e3 {[%emt 0:06:15]} Qf6 {[%emt 0:00:52]} 20. Na5 {[%emt 0:00:18]} Nxa5 {[%emt 0:07:36]} 21. Qxa5 {[%emt 0:00:21]} b6 {[%emt 0:01:39]} 22. Rxc8 {[%emt 0:03:01]} Rxc8 {[%emt 0:00:44]} 23. Qxa7 {[%emt 0:00:06]} Qb2 {[%emt 0:00:34]} 24. h4 {[%emt 0:01:21]} Rc2 {[%emt 0:00:31]} 25. Qxe7 {[%emt 0:04:39]} Qxa2 {[%emt 0:00:36]} 26. Qd8+ {[%emt 0:00:17]} Kg7 {[%emt 0:00:06]} 27. Qd4+ {[%emt 0:00:07]} f6 {[%emt 0:06:34]} 28. Ra1 {[%emt 0:01:39]} Qxb3 {[%emt 0:01:10]} 29. Ra7+ {[%emt 0:00:17]} Bf7 {[%emt 0:02:00]} 30. Bd5 {[%emt 0:02:05]} 1-0

[Event "XLII San Sebastian Open 2019"]
[Site "San Sebastian"]
[Date "2019.04.18"]
[Round "7.7"]
[White "Pastor Alonso De Prado, Alberto"]
[Black "Randazzo, Adrian"]
[Result "1/2-1/2"]
[ECO "C02"]
[WhiteElo "2090"]
[BlackElo "2248"]
[Annotator "NA"]
[PlyCount "76"]
[EventDate "2019.04.13"]
[EventType "swiss"]
[EventCountry "ESP"]
[SourceTitle "playchess.com"]
[Source "ChessBase"]
[SourceQuality "1"]
[TimeControl "5400+30"]

1. e4 {[%emt 0:00:00]} c5 {[%emt 0:00:00]} 2. c3 {[%emt 0:00:00]} e6 {[%emt 0:00:06]} 3. d4 {[%emt 0:00:05]} d5 {[%emt 0:00:26]} 4. e5 {[%emt 0:00:21]} Nc6 {[%emt 0:00:40]} 5. Nf3 {[%emt 0:00:10]} Bd7 {[%emt 0:01:15]} 6. Be2 {[%emt 0:00:09]} Nge7 {[%emt 0:00:18]} 7. Na3 {[%emt 0:01:10]} cxd4 {[%emt 0:00:48]} 8. cxd4 {[%emt 0:00:06]} Nf5 {[%emt 0:00:08]} 9. Nc2 {[%emt 0:00:06]} Qb6 {[%emt 0:00:21]} 10. g4 {[%emt 0:04:46]} Nfe7 {[%emt 0:00:16]} 11. h4 {[%emt 0:02:17]} Na5 {[%emt 0:03:18]} 12. b4 {[%emt 0:07:28]} Nc4 {[%emt 0:01:46]} 13. a4 {[%emt 0:00:09]} Nc6 {[%emt 0:02:22]} 14. b5 {[%emt 0:07:42]} N6a5 {[%emt 0:05:27]} 15. Ne3 {[%emt 0:05:29]} Rc8 {[%emt 0:06:43]} 16. h5 {[%emt 0:08:08]} a6 {[%emt 0:07:13]} 17. bxa6 {[%emt 0:00:23]} bxa6 {[%emt 0:00:03]} 18. Kf1 {[%emt 0:10:43]} Be7 {[%emt 0:00:26]} 19. g5 {[%emt 0:03:35]} Qb3 {[%emt 0:01:32]} 20. Ng4 {[%emt 0:02:58]} Qc3 {[%emt 0:08:04]} 21. Ra2 {[%emt 0:02:34]} Nb3 {[%emt 0:03:09]} 22. Bf4 {[%emt 0:02:09]} Qb4 {[%emt 0:05:00]} 23. Kg2 {[%emt 0:03:47]} Bxa4 {[%emt 0:01:33]} 24. g6 {[%emt 0:04:04]} fxg6 {[%emt 0:05:41]} 25. h6 {[%emt 0:01:54]} gxh6 {[%emt 0:03:36]} 26. Bxh6 {[%emt 0:00:07]} Nb6 {[%emt 0:13:50]} 27. Nf6+ {[%emt 0:05:33]} Bxf6 {[%emt 0:02:12]} 28. exf6 {[%emt 0:00:06]} Rc7 {[%emt 0:12:05]} 29. Bxa6 {[%emt 0:03:04]} g5 {[%emt 0:06:31]} 30. Qe2 {[%emt 0:04:58]} Nxd4 {[%emt 0:00:24]} 31. Qe5 {[%emt 0:00:19]} Nxf3 {[%emt 0:00:54]} 32. Qxc7 {[%emt 0:04:18]} Qg4+ {[%emt 0:01:05]} 33. Kf1 {[%emt 0:00:05]} Nd7 {[%emt 0:02:30]} 34. Qc8+ {[%emt 0:01:39]} Kf7 {[%emt 0:00:03]} 35. Qxh8 {[%emt 0:00:05]} Nh2+ {[%emt 0:00:44]} 36. Rxh2 {[%emt 0:00:59]} Qd1+ {[%emt 0:00:05]} 37. Kg2 {[%emt 0:00:04]} Qg4+ {[%emt 0:00:08]} 38. Kh1 {[%emt 0:00:57]} Qd1+ {[%emt 0:00:04]} 1/2-1/2

[Event "XLII San Sebastian Open 2019"]
[Site "San Sebastian"]
[Date "2019.04.18"]
[Round "7.8"]
[White "Perez Gonzalez, Jose Manuel"]
[Black "Corral Sierra, Javier"]
[Result "1-0"]
[ECO "B48"]
[WhiteElo "2231"]
[BlackElo "2058"]
[Annotator "NA"]
[PlyCount "109"]
[EventDate "2019.04.13"]
[EventType "swiss"]
[EventCountry "ESP"]
[SourceTitle "playchess.com"]
[Source "ChessBase"]
[SourceQuality "1"]
[TimeControl "5400+30"]

1. e4 {[%emt 0:00:00]} c5 {[%emt 0:09:24]} 2. Nf3 {[%emt 0:00:00]} e6 {[%emt 0:00:37]} 3. d4 {[%emt 0:00:00]} cxd4 {[%emt 0:00:07]} 4. Nxd4 {[%emt 0:00:00]} Nc6 {[%emt 0:01:02]} 5. Nc3 {[%emt 0:00:00]} Qc7 {[%emt 0:00:19]} 6. Be3 {[%emt 0:00:17]} a6 {[%emt 0:00:48]} 7. Qd2 {[%emt 0:00:16]} Nf6 {[%emt 0:00:26]} 8. O-O-O {[%emt 0:00:12]} Be7 {[%emt 0:00:34]} 9. f3 {[%emt 0:00:10]} b5 {[%emt 0:00:44]} 10. Nxc6 {[%emt 0:00:19]} dxc6 {[%emt 0:01:50]} 11. g4 {[%emt 0:00:11]} Bb7 {[%emt 0:02:44]} 12. Qf2 {[%emt 0:00:12]} Rd8 {[%emt 0:14:27]} 13. Rxd8+ {[%emt 0:07:26]} Bxd8 {[%emt 0:05:36]} 14. Bg2 {[%emt 0:02:04]} e5 {[%emt 0:13:57]} 15. h4 {[%emt 0:14:43]} h6 {[%emt 0:04:26]} 16. Ne2 {[%emt 0:14:20]} Bc8 {[%emt 0:03:05]} 17. Ng3 {[%emt 0:01:57]} g6 {[%emt 0:01:32]} 18. Qd2 {[%emt 0:12:58]} Qa5 {[%emt 0:06:42]} 19. Qxa5 {[%emt 0:00:31]} Bxa5 {[%emt 0:00:07]} 20. Rd1 {[%emt 0:01:36]} Bb4 {[%emt 0:01:09]} 21. Bf1 {[%emt 0:05:31]} Be6 {[%emt 0:01:11]} 22. a4 {[%emt 0:05:43]} Nd7 {[%emt 0:04:11]} 23. axb5 {[%emt 0:04:24]} axb5 {[%emt 0:00:42]} 24. Be2 {[%emt 0:06:17]} Ke7 {[%emt 0:04:23]} 25. c3 {[%emt 0:03:54]} Bc5 {[%emt 0:00:13]} 26. Rxd7+ {[%emt 0:00:13]} Kxd7 {[%emt 0:00:15]} 27. Bxc5 {[%emt 0:00:07]} Ra8 {[%emt 0:01:09]} 28. Be3 {[%emt 0:01:10]} Bb3 {[%emt 0:03:56]} 29. Kb1 {[%emt 0:01:00]} Rh8 {[%emt 0:01:46]} 30. Nf1 {[%emt 0:01:57]} h5 {[%emt 0:00:12]} 31. g5 {[%emt 0:01:33]} Ra8 {[%emt 0:01:41]} 32. Nd2 {[%emt 0:00:28]} Ba2+ {[%emt 0:00:22]} 33. Kc2 {[%emt 0:00:31]} Be6 {[%emt 0:00:05]} 34. c4 {[%emt 0:01:15]} Ra1 {[%emt 0:02:52]} 35. cxb5 {[%emt 0:00:18]} Re1 {[%emt 0:00:10]} 36. bxc6+ {[%emt 0:00:21]} Kxc6 {[%emt 0:00:02]} 37. Kd3 {[%emt 0:00:17]} Bc8 {[%emt 0:02:33]} 38. b3 {[%emt 0:01:19]} Ba6+ {[%emt 0:00:10]} 39. Nc4 {[%emt 0:00:05]} Bxc4+ {[%emt 0:02:39]} 40. bxc4 {[%emt 0:00:06]} Ra1 {[%emt 0:01:19]} 41. Bf2 {[%emt 0:00:32]} Ra2 {[%emt 0:00:11]} 42. Bg3 {[%emt 0:02:41]} Kd6 {[%emt 0:00:38]} 43. Ke3 {[%emt 0:00:30]} Rc2 {[%emt 0:01:02]} 44. f4 {[%emt 0:01:45]} exf4+ {[%emt 0:01:36]} 45. Bxf4+ {[%emt 0:00:06]} Kc5 {[%emt 0:01:01]} 46. Be5 {[%emt 0:04:59]} Rc1 {[%emt 0:00:55]} 47. Bd4+ {[%emt 0:00:09]} Kc6 {[%emt 0:00:30]} 48. e5 {[%emt 0:00:17]} Kd7 {[%emt 0:01:02]} 49. Bf3 {[%emt 0:01:06]} Ke7 {[%emt 0:03:23]} 50. Bd5 {[%emt 0:01:53]} Rg1 {[%emt 0:01:38]} 51. Ke2 {[%emt 0:02:17]} Rg4 {[%emt 0:01:19]} 52. Bc5+ {[%emt 0:00:10]} Ke8 {[%emt 0:00:15]} 53. Bf2 {[%emt 0:00:06]} Rf4 {[%emt 0:00:19]} 54. c5 {[%emt 0:03:15]} Rf5 {[%emt 0:01:12]} 55. Bg3 {[%emt 0:00:11]} 1-0